[Event "Gibraltar Challengers A 2020"]
[Site "Caleta"]
[Date "2020.01.21"]
[Round "3.38"]
[White "Brown, David"]
[Black "Hng, Mei-Xian Eunice"]
[Result "0-1"]
[ECO "B42"]
[WhiteElo "1916"]
[BlackElo "1661"]
[Annotator "NA RC"]
[PlyCount "84"]
[EventDate "2020.01.20"]
[EventType "swiss"]
[EventCountry "GGB"]
[SourceTitle "playchess.com"]
[Source "ChessBase"]
[SourceQuality "1"]
[TimeControl "6600+10"]

1. e4 {[%emt 0:00:00]} c5 {[%emt 0:00:03]} 2. Nf3 {[%emt 0:00:02]} e6 {[%emt 0:00:06]} 3. d4 {[%emt 0:00:09]} cxd4 {[%emt 0:00:13]} 4. Nxd4 {[%emt 0:00:03]} a6 {[%emt 0:00:06]} 5. Bd3 {[%emt 0:04:39]} Bc5 {[%emt 0:00:29]} 6. Nb3 {[%emt 0:00:26]} Ba7 {[%emt 0:00:30]} 7. O-O {[%emt 0:01:43]} Nc6 {[%emt 0:00:52]} 8. c3 {[%emt 0:01:58] B42: Sicilian: Kan Variation: 5 Bd3} (8. Qg4 Qf6 9. Bg5 Qg6 10. Qh4 h6 11. Bf4 Nf6 12. N1d2 e5 13. Be3 Bxe3 14. fxe3 b5 15. a4 Rb8 16. axb5 axb5 {½-½ (44) Navara,D (2733)-Babula,V (2549) Ostrava 2019}) 8... Nf6 {[%emt 0:09:06]} 9. Qe2 {[%emt 0:03:10]} d6 {[%emt 0:02:39]} 10. Na3 $146 {[%emt 0:02:09]} ({Predecessor:} 10. N1d2 O-O 11. a4 Ne5 12. Bc2 Bd7 13. Nd4 Qc7 14. N2f3 Ng6 {0-1 (38) February,J (1933)-Pais,B (1817) Sao Martinho do Porto 2018}) 10... h6 {[%emt 0:06:43]} 11. Be3 {[%emt 0:04:27]} O-O {[%emt 0:05:43]} 12. Rad1 {[%emt 0:03:14]} b5 {[%emt 0:09:51]} 13. Bb1 {[%emt 0:04:50]} Bxe3 {[%emt 0:05:55]} 14. Qxe3 {[%emt 0:00:12]} Qc7 {[%emt 0:00:21]} 15. Qf4 {[%emt 0:10:50]} Ne5 {[%emt 0:04:23]} 16. Nd4 {[%emt 0:11:40]} Bb7 {[%emt 0:07:46]} 17. Ndxb5 {[%emt 0:17:00]} axb5 {[%emt 0:11:54]} 18. Nxb5 {[%emt 0:00:14]} Qb6 {[%emt 0:00:32]} 19. Nxd6 {[%emt 0:02:01]} Ng6 {[%emt 0:00:57]} 20. Qg3 {[%emt 0:00:59]} e5 {[%emt 0:05:12]} 21. b3 {[%emt 0:18:39]} Rfd8 {[%emt 0:08:23]} 22. Nxb7 {[%emt 0:02:40]} Qxb7 {[%emt 0:00:12]} 23. Qe3 {[%emt 0:00:26]} Nf4 {[%emt 0:04:53]} 24. g3 {[%emt 0:03:01]} Nh3+ {[%emt 0:00:42]} (24... Ng4 $142 25. Qf3 Nh3+ 26. Kg2 Nhxf2) 25. Kg2 {[%emt 0:01:24]} Ng5 {[%emt 0:04:37]} 26. f3 {[%emt 0:00:56]} Rxd1 {[%emt 0:02:30]} 27. Rxd1 {[%emt 0:00:04]} Qc8 {[%emt 0:00:04]} 28. Rd3 {[%emt 0:10:19]} Qh3+ {[%emt 0:04:29]} 29. Kg1 {[%emt 0:00:03]} Nh5 {[%emt 0:00:35]} 30. Qd2 {[%emt 0:00:57]} Nxg3 {[%emt 0:03:52]} 31. hxg3 {[%emt 0:00:37]} Qxg3+ {[%emt 0:00:10]} 32. Kf1 {[%emt 0:03:57] [#]} Nxf3 $2 {[%emt 0:00:53]} ({Black should play} 32... Nh3 $1 $19 33. Qg2 Qxg2+ 34. Kxg2 Nf4+ {[%mdl 64] Double Attack} 35. Kg3 Nxd3 36. Bxd3 Rxa2) 33. Qf2 $15 {[%emt 0:01:05]} Qh3+ {[%emt 0:03:40]} 34. Ke2 {[%emt 0:00:09]} Qh1 {[%emt 0:00:40]} 35. Rd1 {[%emt 0:00:03]} Qh2 {[%emt 0:02:01]} 36. Kxf3 {[%emt 0:00:20]} Qh5+ {[%emt 0:00:02]} 37. Ke3 {[%emt 0:00:21]} Qxd1 {[%emt 0:00:02]} 38. Qc2 {[%emt 0:00:16]} Qg1+ {[%emt 0:00:45]} 39. Kf3 {[%emt 0:00:11]} Ra6 {[%emt 0:00:03]} 40. Ke2 {[%emt 0:00:22]} Rf6 {[%emt 0:00:22]} 41. Kd3 {[%emt 0:00:12]} Qf1+ {[%emt 0:00:04]} 42. Qe2 {[%emt 0:00:06]} Rf3+ {[%emt 0:00:25]} 0-1

[Event "Gibraltar Challengers A 2020"]
[Site "Caleta"]
[Date "2020.01.23"]
[Round "4.11"]
[White "Vinal Gutierrez, Pedro"]
[Black "Zulkipli, Zaidan"]
[Result "0-1"]
[ECO "A48"]
[WhiteElo "2069"]
[BlackElo "2174"]
[Annotator "ChessBase"]
[PlyCount "70"]
[EventDate "2020.01.20"]
[EventType "swiss"]
[EventCountry "GGB"]
[SourceTitle "playchess.com"]
[Source "ChessBase"]
[SourceQuality "1"]
[TimeControl "6600+10"]

1. d4 {[%emt 0:00:00]} Nf6 {[%emt 0:07:49]} 2. Bf4 {[%emt 0:00:04]} g6 {[%emt 0:00:02]} 3. e3 {[%emt 0:00:16]} Bg7 {[%emt 0:00:04]} 4. Nf3 {[%emt 0:00:21]} d6 {[%emt 0:00:06]} 5. h3 {[%emt 0:00:16]} O-O {[%emt 0:00:06]} 6. Be2 {[%emt 0:00:46]} Nfd7 {[%emt 0:00:08]} 7. O-O {[%emt 0:01:03]} e5 {[%emt 0:00:08]} 8. Bh2 {[%emt 0:00:54]} Nc6 {[%emt 0:00:38]} 9. d5 {[%emt 0:02:56]} Ne7 {[%emt 0:00:17]} 10. c4 {[%emt 0:01:09]} h6 {[%emt 0:02:27]} 11. Nc3 {[%emt 0:01:38]} f5 {[%emt 0:00:24]} 12. Nd2 {[%emt 0:01:27]} f4 {[%emt 0:00:31]} 13. Bg4 {[%emt 0:01:10]} g5 {[%emt 0:00:28]} 14. Nde4 {[%emt 0:02:35]} Nf6 {[%emt 0:01:47]} 15. Nxf6+ {[%emt 0:00:46]} Rxf6 {[%emt 0:00:08]} 16. Ne4 {[%emt 0:04:19]} Rf8 {[%emt 0:00:03]} 17. Rc1 {[%emt 0:01:50]} Bf5 {[%emt 0:02:21]} 18. Bxf5 {[%emt 0:00:25]} Nxf5 {[%emt 0:00:03]} 19. Qe2 {[%emt 0:07:02]} Qe7 {[%emt 0:02:27]} 20. c5 {[%emt 0:01:43]} Rad8 {[%emt 0:02:04]} 21. Rc4 {[%emt 0:03:24]} Qf7 {[%emt 0:01:39]} 22. cxd6 {[%emt 0:02:34]} cxd6 {[%emt 0:00:18]} 23. Rd1 {[%emt 0:04:27]} Rd7 {[%emt 0:01:04]} 24. Kh1 {[%emt 0:01:10]} Qg6 {[%emt 0:03:06]} 25. g4 {[%emt 0:04:44]} fxg3 {[%emt 0:03:13]} 26. Nxg3 {[%emt 0:01:06]} Rdf7 {[%emt 0:03:18]} 27. Rdc1 {[%emt 0:05:14]} Nxg3+ {[%emt 0:04:17]} 28. Bxg3 {[%emt 0:00:14]} Rf3 {[%emt 0:00:48]} 29. Kg2 {[%emt 0:01:56]} Qf7 {[%emt 0:06:45]} 30. e4 {[%emt 0:02:37]} Qh5 {[%emt 0:00:25]} 31. R1c2 {[%emt 0:02:20]} g4 {[%emt 0:01:20]} 32. hxg4 {[%emt 0:01:13]} Qxg4 {[%emt 0:00:01]} 33. Qe1 {[%emt 0:10:37]} Bf6 {[%emt 0:04:06]} 34. Qh1 {[%emt 0:02:39]} Bg5 {[%emt 0:05:34]} 35. Kh2 {[%emt 0:00:06]} h5 {[%emt 0:00:31]} 0-1

[Event "Gibraltar Challengers A 2020"]
[Site "Caleta"]
[Date "2020.01.23"]
[Round "4.12"]
[White "Nebel, Jens"]
[Black "Stolniceanu, Victor-Dumitru"]
[Result "1-0"]
[ECO "C30"]
[WhiteElo "2168"]
[BlackElo "2074"]
[Annotator "ChessBase"]
[PlyCount "73"]
[EventDate "2020.01.20"]
[EventType "swiss"]
[EventCountry "GGB"]
[SourceTitle "playchess.com"]
[Source "ChessBase"]
[SourceQuality "1"]
[TimeControl "6600+10"]

1. e4 {[%emt 0:00:00]} e5 {[%emt 0:00:00]} 2. Nc3 {[%emt 0:00:01]} Nf6 {[%emt 0:00:13]} 3. f4 {[%emt 0:00:07]} d6 {[%emt 0:00:24]} 4. Nf3 {[%emt 0:00:11]} Bg4 {[%emt 0:00:19]} 5. h3 {[%emt 0:05:25]} Bxf3 {[%emt 0:00:13]} 6. Qxf3 {[%emt 0:00:08]} a6 {[%emt 0:01:06]} 7. Bc4 {[%emt 0:03:39]} Nc6 {[%emt 0:00:12]} 8. Ne2 {[%emt 0:05:33]} Na5 {[%emt 0:00:51]} 9. Bd3 {[%emt 0:03:30]} c5 {[%emt 0:00:15]} 10. c3 {[%emt 0:01:24]} c4 {[%emt 0:00:37]} 11. Bc2 {[%emt 0:00:23]} Nc6 {[%emt 0:00:08]} 12. b3 {[%emt 0:09:10]} b5 {[%emt 0:00:35]} 13. bxc4 {[%emt 0:02:41]} bxc4 {[%emt 0:00:09]} 14. Ba4 {[%emt 0:01:05]} Qb6 {[%emt 0:00:20]} 15. Rb1 {[%emt 0:03:28]} Qc7 {[%emt 0:00:12]} 16. fxe5 {[%emt 0:10:39]} dxe5 {[%emt 0:00:19]} 17. Nd4 {[%emt 0:02:05]} exd4 {[%emt 0:01:25]} 18. e5 {[%emt 0:00:14]} Nd7 {[%emt 0:00:35]} 19. Bxc6 {[%emt 0:01:09]} Rd8 {[%emt 0:03:37]} 20. O-O {[%emt 0:00:21]} Rc8 {[%emt 0:01:45]} 21. Qxf7+ {[%emt 0:01:27]} Kd8 {[%emt 0:00:01]} 22. Qxd7+ {[%emt 0:13:32]} Qxd7 {[%emt 0:00:02]} 23. Bxd7 {[%emt 0:00:10]} Kxd7 {[%emt 0:00:10]} 24. cxd4 {[%emt 0:00:10]} Ke6 {[%emt 0:00:30]} 25. Rb6+ {[%emt 0:00:38]} Kd5 {[%emt 0:00:02]} 26. Bb2 {[%emt 0:00:15]} Rc6 {[%emt 0:00:21]} 27. Rb8 {[%emt 0:00:13]} Ba3 {[%emt 0:00:20]} 28. Rxh8 {[%emt 0:00:07]} Bxb2 {[%emt 0:00:15]} 29. Rd8+ {[%emt 0:00:22]} Ke4 {[%emt 0:00:05]} 30. d5 {[%emt 0:00:30]} Rb6 {[%emt 0:02:37]} 31. e6 {[%emt 0:04:25]} Bd4+ {[%emt 0:00:14]} 32. Kh1 {[%emt 0:00:12]} Bc5 {[%emt 0:00:26]} 33. e7 {[%emt 0:00:22]} Bxe7 {[%emt 0:00:12]} 34. Re1+ {[%emt 0:00:06]} Kd3 {[%emt 0:00:16]} 35. Rxe7 {[%emt 0:00:08]} Kxd2 {[%emt 0:00:15]} 36. Rc7 {[%emt 0:00:07]} c3 {[%emt 0:00:06]} 37. Rdc8 {[%emt 0:00:06]} 1-0

[Event "Gibraltar Challengers A 2020"]
[Site "Caleta"]
[Date "2020.01.23"]
[Round "4.21"]
[White "Paul, Nathanael"]
[Black "Hamer, Martyn"]
[Result "0-1"]
[ECO "A45"]
[WhiteElo "1987"]
[BlackElo "2069"]
[Annotator "NA"]
[PlyCount "142"]
[EventDate "2020.01.20"]
[EventType "swiss"]
[EventCountry "GGB"]
[SourceTitle "playchess.com"]
[Source "ChessBase"]
[SourceQuality "1"]
[TimeControl "6600+10"]

{[%evp 8,141,16,-2,2,8,-2,15,34,32767,32767,18,33,3,30,11,12,32767,32767,0,0,0,0,32767,32767,32767,5,1,4,7,32767,32767,32767,32767,0,0,32767,8,7,0,25,20,32767,-45,32767,32767,-79,-95,-38,-49,32767,32767,0,-85,-76,-102,-97,-127,-129,-137,-130,-148,32767,32767,32767,32767,32767,32767,-84,32767,32767,-88,-110,-166,-166,-150,-135,-139,-172,32767,32767,32767,32767,-163,32767,-271,-854,32767,32767,-4127,-125,-1069,-1978,32767,-10117,32767,32767,-1329,-314,-12832,-4133,-311,-3241,32767,32767,32767,32767,32767,32767,-2251,-5065,32767,-12840,-5085,-6616,-6103,32767,32767,32767,32767,32767,32767,32767,32767,-29969,32767,-29980,-29983,-29982,32767,32767,32767,-29986,32767,32767,-29987]} 1. d4 {[%emt 0:00:00]} Nf6 {[%emt 0:00:00]} 2. Bf4 {[%emt 0:00:08]} g6 {[%emt 0:00:15]} 3. Nc3 {[%emt 0:00:07]} d5 {[%emt 0:00:08]} 4. e3 {[%emt 0:00:05]} Bg7 {[%emt 0:00:09]} 5. h4 {[%emt 0:00:11]} O-O {[%emt 0:00:17]} (5... c6 6. Be2 Qb6 7. Rb1 h5 8. Nf3 Bg4 9. Ne5 Bxe2 10. Qxe2 Nbd7 11. Qf3 Qa6 {0-1 (32) Karjakin,S (2750)-Yu,Y (2752) Saint Louis 2019}) 6. h5 {[%emt 0:00:50] A45: Trompowsky Attack} c5 {[%emt 0:00:05]} 7. hxg6 {[%emt 0:00:05]} fxg6 {[%emt 0:00:04]} 8. dxc5 {[%emt 0:01:02]} Nc6 {[%emt 0:00:05]} 9. Nf3 {[%emt 0:00:30]} Qa5 $146 {[%emt 0:01:22]} ({Predecessor:} 9... Bg4 10. Be2 Qa5 11. Ng5 Bxe2 12. Qxe2 {0-1 (45) Khandhar,K (1957)-Li,G (2131) Penang 2019}) 10. Qd2 {[%emt 0:05:23]} Qxc5 {[%emt 0:00:42]} 11. Be2 {[%emt 0:03:07]} Bf5 {[%emt 0:02:22]} 12. O-O {[%emt 0:13:46]} Rad8 {[%emt 0:02:42]} 13. Nd4 {[%emt 0:05:20]} Ne4 {[%emt 0:03:47]} 14. Nxe4 {[%emt 0:04:44]} dxe4 {[%emt 0:02:09]} 15. Qc3 {[%emt 0:03:13]} Qxc3 {[%emt 0:04:49]} 16. bxc3 {[%emt 0:00:02]} e5 {[%emt 0:02:03]} 17. Bc4+ {[%emt 0:04:46]} Kh8 {[%emt 0:00:07]} 18. Nxc6 {[%emt 0:00:07]} bxc6 {[%emt 0:00:25]} 19. Bg5 {[%emt 0:00:24]} Rd2 {[%emt 0:04:51]} 20. Bb3 {[%emt 0:00:39]} Bg4 {[%emt 0:02:07]} 21. Be7 {[%emt 0:02:32]} Re8 {[%emt 0:04:49]} 22. Bb4 {[%emt 0:03:15]} Bf8 {[%emt 0:15:24]} 23. Ba5 {[%emt 0:00:10]} c5 {[%emt 0:02:40]} 24. c4 {[%emt 0:01:40]} Rd6 {[%emt 0:02:00]} 25. Bc7 {[%emt 0:05:40]} (25. Ba4 $14 Rc8 26. Bc3) 25... Ra6 {[%emt 0:03:49]} 26. f3 {[%emt 0:00:32]} exf3 {[%emt 0:00:44]} 27. gxf3 {[%emt 0:00:03]} Bc8 {[%emt 0:02:35]} 28. Rad1 {[%emt 0:00:21]} Kg7 {[%emt 0:00:39]} 29. Rd5 {[%emt 0:00:53]} Kf6 {[%emt 0:04:43]} 30. f4 {[%emt 0:06:01]} (30. e4 $11) 30... exf4 {[%emt 0:02:06]} 31. Rxf4+ {[%emt 0:00:33]} Kg7 {[%emt 0:01:58]} 32. Kf2 {[%emt 0:02:15]} Be6 {[%emt 0:05:01]} 33. Rd8 {[%emt 0:03:50]} Rxd8 {[%emt 0:00:54]} 34. Bxd8 {[%emt 0:00:03]} Bd7 {[%emt 0:02:35]} 35. c3 {[%emt 0:04:33]} Re6 {[%emt 0:01:36]} 36. Bd1 {[%emt 0:03:08]} Bd6 {[%emt 0:04:35]} 37. Bg4 {[%emt 0:00:41]} Bxf4 {[%emt 0:00:22]} 38. Bxe6 {[%emt 0:00:07]} Bxe3+ {[%emt 0:00:09]} 39. Kxe3 {[%emt 0:00:15]} Bxe6 {[%emt 0:00:03]} 40. Be7 {[%emt 0:01:53]} (40. Kd3 $17) 40... Bxc4 {[%emt 0:00:28]} 41. Bxc5 {[%emt 0:00:09]} a6 {[%emt 0:02:34]} ({Don't play} 41... Bxa2 42. Bxa7 Kf6 43. c4 $15) 42. a3 {[%emt 0:00:03]} g5 {[%emt 0:00:13]} 43. Kf3 {[%emt 0:02:39]} Kg6 {[%emt 0:00:16]} 44. Ke4 {[%emt 0:07:36]} h5 {[%emt 0:00:31]} 45. Bf2 {[%emt 0:03:45]} h4 {[%emt 0:00:30]} 46. a4 {[%emt 0:00:16]} (46. Bb6 {might work better.}) 46... Kh5 {[%emt 0:00:35]} 47. a5 {[%emt 0:00:42]} Kg4 {[%emt 0:00:36]} 48. Bc5 {[%emt 0:00:54]} Bb5 $2 {[%emt 0:01:09]} (48... Kg3 $19 49. Bd6+ Kh3) 49. Bd6 $2 {[%emt 0:00:41]} (49. Be7 $17) 49... Kh3 {[%emt 0:00:42]} 50. Be7 {[%emt 0:07:36]} g4 {[%emt 0:00:47]} 51. Kf4 {[%emt 0:00:10]} Bc6 {[%emt 0:01:36]} 52. Kg5 {[%emt 0:07:03]} g3 {[%emt 0:02:48]} 53. Bc5 {[%emt 0:00:02]} g2 {[%emt 0:02:43]} 54. Bf2 {[%emt 0:01:09]} Bd5 {[%emt 0:02:21]} 55. Kh5 {[%emt 0:00:11]} Bc4 {[%emt 0:00:22]} 56. Kg5 {[%emt 0:00:30]} Be2 {[%emt 0:00:16]} 57. Bc5 {[%emt 0:01:14]} Bb5 {[%emt 0:03:00]} 58. Bf2 {[%emt 0:00:06]} Bc4 {[%emt 0:00:29]} 59. Kh5 {[%emt 0:00:13]} Be6 {[%emt 0:00:11]} 60. Kg5 {[%emt 0:00:11]} Bf7 {[%emt 0:00:04]} 61. Bc5 {[%emt 0:00:32]} Kg3 {[%emt 0:00:46]} 62. Bd6+ {[%emt 0:00:01]} Kf3 {[%emt 0:00:10]} 63. Bh2 {[%emt 0:00:02]} h3 {[%emt 0:00:17]} 64. Kh4 {[%emt 0:00:02]} Be6 {[%emt 0:00:14]} 65. Bg1 {[%emt 0:00:04]} Bd7 {[%emt 0:00:53]} 66. c4 {[%emt 0:00:31]} Bc8 {[%emt 0:00:15]} 67. c5 {[%emt 0:00:02]} Be6 {[%emt 0:00:19]} 68. c6 {[%emt 0:00:05]} Bc8 {[%emt 0:00:28]} 69. c7 {[%emt 0:00:02]} Bd7 {[%emt 0:00:15]} 70. Bh2 {[%emt 0:01:47]} Kf2 {[%emt 0:00:08]} 71. Kg5 {[%emt 0:00:23]} g1=Q+ {[%emt 0:00:11]} 0-1

[Event "Gibraltar Challengers A 2020"]
[Site "Caleta"]
[Date "2020.01.23"]
[Round "4.22"]
[White "Hari Charan Sai Kalluri"]
[Black "Huguet, Sergio"]
[Result "1-0"]
[ECO "B08"]
[WhiteElo "1836"]
[BlackElo "2055"]
[Annotator "NA"]
[PlyCount "63"]
[EventDate "2020.01.20"]
[EventType "swiss"]
[EventCountry "GGB"]
[SourceTitle "playchess.com"]
[Source "ChessBase"]
[SourceQuality "1"]
[TimeControl "6600+10"]

1. d4 {[%emt 0:00:45]} Nf6 {[%emt 0:00:22]} 2. Nf3 {[%emt 0:00:32]} g6 {[%emt 0:00:18]} 3. Nc3 {[%emt 0:00:06]} Bg7 {[%emt 0:00:55]} 4. e4 {[%emt 0:00:06]} d6 {[%emt 0:00:37]} 5. Be2 {[%emt 0:00:08]} O-O {[%emt 0:02:20]} 6. Bg5 {[%emt 0:00:04]} h6 {[%emt 0:06:20]} 7. Bh4 {[%emt 0:01:10]} g5 {[%emt 0:02:38] B08: Pirc Defence: Classical System} (7... c5 8. Qd2 cxd4 9. Nxd4 Nc6 10. f3 Nxd4 11. Qxd4 g5 12. Bg3 Nh5 13. Qb4 a5 14. Qb3 Be6 15. Nd5 {0-1 (27) Chamekh,A (1981)-Boudriga,M (2366) Hammamet 2019}) 8. Bg3 {[%emt 0:00:05]} Nh5 {[%emt 0:00:57]} 9. Qd3 {[%emt 0:08:59]} Nxg3 {[%emt 0:08:33]} 10. hxg3 {[%emt 0:00:41]} e5 {[%emt 0:00:20]} 11. dxe5 {[%emt 0:02:36]} dxe5 {[%emt 0:00:47]} 12. Qxd8 {[%emt 0:02:11]} Rxd8 {[%emt 0:00:12]} 13. Nd5 {[%emt 0:00:05]} Na6 $146 {[%emt 0:12:28]} ({Predecessor:} 13... Rd7 14. O-O-O c6 15. Ne7+ Rxe7 {1-0 (27) Contedini,E-Vuruna,M Imperia 1968}) 14. Bxa6 {[%emt 0:00:37]} bxa6 {[%emt 0:00:13]} 15. Nxc7 {[%emt 0:00:24]} Rb8 {[%emt 0:00:38]} 16. Nd5 {[%emt 0:00:24]} Be6 {[%emt 0:04:35]} 17. Ne7+ {[%emt 0:00:45]} Kf8 {[%emt 0:03:29]} 18. Nc6 $1 {[%emt 0:01:10] Double Attack} Rdc8 {[%emt 0:00:44]} 19. Nxb8 {[%emt 0:00:05]} Rxb8 {[%emt 0:00:22]} 20. O-O-O {[%emt 0:00:15]} f5 {[%emt 0:01:22]} 21. Rd6 {[%emt 0:05:24]} Ke7 {[%emt 0:01:18]} 22. Rxa6 {[%emt 0:00:06]} Rb7 {[%emt 0:01:55]} 23. exf5 {[%emt 0:00:31]} Bxf5 {[%emt 0:00:10]} 24. Re1 {[%emt 0:00:43]} e4 {[%emt 0:01:51]} 25. c3 {[%emt 0:00:01]} Kf7 {[%emt 0:00:48]} 26. Nd2 {[%emt 0:00:57]} Re7 {[%emt 0:01:12]} 27. Ra4 {[%emt 0:00:06]} h5 {[%emt 0:03:10]} 28. Nxe4 {[%emt 0:00:08]} Kf8 {[%emt 0:01:07]} 29. f3 {[%emt 0:01:33]} g4 {[%emt 0:00:17]} 30. Ra5 {[%emt 0:01:22]} Bh6+ {[%emt 0:00:42]} 31. Kc2 {[%emt 0:00:10]} Bg6 {[%emt 0:00:35]} 32. b4 $18 {[%emt 0:01:04]} 1-0

[Event "Gibraltar Challengers A 2020"]
[Site "Caleta"]
[Date "2020.01.23"]
[Round "4.23"]
[White "Martinez Lopez, Jaume"]
[Black "O`Neil, Jim"]
[Result "1/2-1/2"]
[ECO "A80"]
[WhiteElo "2042"]
[BlackElo "1870"]
[Annotator "NA"]
[PlyCount "86"]
[EventDate "2020.01.20"]
[EventType "swiss"]
[EventCountry "GGB"]
[SourceTitle "playchess.com"]
[Source "ChessBase"]
[SourceQuality "1"]
[TimeControl "6600+10"]

1. d4 {[%emt 0:00:00]} f5 {[%emt 0:00:02]} 2. Bg5 {[%emt 0:00:01]} h6 {[%emt 0:00:44]} 3. Bh4 {[%emt 0:00:07]} g5 {[%emt 0:00:09]} 4. Bg3 {[%emt 0:00:24]} Nf6 {[%emt 0:01:58]} 5. h4 {[%emt 0:00:13]} (5. e3 d6 6. Nc3 e6 7. h4 Rg8 8. hxg5 hxg5 9. f3 Nc6 10. Qd2 Qe7 11. O-O-O Bd7 12. e4 O-O-O 13. Nge2 a6 14. exf5 {½-½ (53) Harikrishna,P (2748)-Kociscak,J (2499) Czech Republic 2019}) 5... g4 {[%emt 0:01:36]} 6. h5 {[%emt 0:01:23] A80: Dutch Defence: Unusual White second moves} d6 $146 {[%emt 0:01:33]} ({Predecessor:} 6... Bg7 7. e3 d6 8. Nc3 O-O 9. Nge2 Be6 10. Qd3 Qc8 11. d5 Bf7 12. Nd4 {½-½ (45) Fominykh,M (2305)-Ambarcumova,K (2228) Moscow 2008}) 7. Nc3 {[%emt 0:00:44]} Be6 {[%emt 0:02:29]} 8. Qd3 {[%emt 0:09:17]} Qd7 {[%emt 0:04:12]} 9. e4 {[%emt 0:00:12]} fxe4 {[%emt 0:07:25]} 10. Nxe4 {[%emt 0:00:25]} Nxe4 {[%emt 0:05:18]} 11. Qxe4 {[%emt 0:00:02]} c6 {[%emt 0:00:18]} 12. Bd3 {[%emt 0:01:35]} Na6 {[%emt 0:05:11]} 13. Qe2 {[%emt 0:08:16]} Bf5 {[%emt 0:03:40]} 14. Bxf5 {[%emt 0:08:05]} Qxf5 {[%emt 0:00:06]} 15. Bxd6 {[%emt 0:00:05]} O-O-O {[%emt 0:07:34]} 16. Be5 {[%emt 0:03:33]} Rg8 {[%emt 0:00:10]} 17. O-O-O {[%emt 0:02:46]} Nb4 {[%emt 0:04:44]} (17... Bg7 $11 {keeps the balance.}) 18. Kb1 {[%emt 0:04:35]} Bg7 {[%emt 0:03:02]} 19. f4 {[%emt 0:00:57]} gxf3 {[%emt 0:01:16]} (19... Bxe5 $11 {keeps the balance.} 20. fxe5 Qf7) 20. Nxf3 {[%emt 0:00:21]} Bf6 {[%emt 0:33:05]} 21. Nh4 {[%emt 0:21:16]} ({White should play} 21. a3 $16 Nd5 22. Qd2) 21... Qe6 $1 {[%emt 0:00:00]} 22. b3 {[%emt 0:03:00]} Nd5 $1 {[%emt 0:00:00]} 23. Qc4 {[%emt 0:04:58]} Bxe5 {[%emt 0:00:00]} 24. Rde1 $1 {[%emt 0:01:28] Pin} Rg3 {[%emt 0:06:31]} 25. Rxe5 {[%emt 0:00:36]} Qg4 {[%emt 0:02:36]} 26. Nf5 {[%emt 0:06:32]} Rc3 {[%emt 0:01:29]} 27. Qe2 {[%emt 0:01:06]} Rxb3+ {[%emt 0:01:41]} 28. Ka1 {[%emt 0:02:44]} Qxe2 {[%emt 0:00:40]} 29. Rxe2 {[%emt 0:00:02]} Ra3 {[%emt 0:01:15]} 30. Kb2 {[%emt 0:00:21]} Rxa2+ {[%emt 0:00:32]} 31. Kb3 {[%emt 0:01:22]} ({White must play} 31. Kxa2 $16 Nc3+ {[%mdl 64] Double Attack} 32. Kb3 Nxe2 33. c3) 31... Ra5 {[%emt 0:00:48]} 32. Nxh6 {[%emt 0:04:23]} Nf6 {[%emt 0:00:53]} (32... Rb5+ $15 {keeps the upper hand.} 33. Ka3 Nc3) 33. Re5 {[%emt 0:01:00]} Rdd5 {[%emt 0:00:48]} 34. Nf7 {[%emt 0:00:56]} Rdb5+ {[%emt 0:01:24] [#]} 35. Kc3 $2 {[%emt 0:00:51] [#]} (35. Kc4 $1 $16 {is forced if you want to stay better.}) 35... Ra3+ $1 {[%emt 0:02:27]} 36. Kd2 {[%emt 0:00:19]} Rxe5 {[%emt 0:00:29]} 37. Nxe5 $2 {[%emt 0:03:46]} (37. dxe5 Ne4+ 38. Ke2 Ng3+ {[%mdl 64] Double Attack} 39. Kd2 Nxh1 40. h6) 37... Ne4+ {[%emt 0:00:06]} 38. Ke2 {[%emt 0:00:05]} Ng3+ {[%emt 0:00:06] Double Attack} 39. Kd2 $19 {[%emt 0:00:06]} Ne4+ {[%emt 0:03:32]} 40. Ke2 {[%emt 0:00:12]} Ng3+ {[%emt 0:00:09]} 41. Kd2 {[%emt 0:00:27]} Nxh1 42. h6 {[%emt 0:00:02]} Rg3 43. h7 {[%emt 0:00:03]} Rxg2+ {[%emt 0:00:01]} 1/2-1/2